[Event "*** Titled Tuesday Blitz"]
[Site "Chess.com"]
[Date "2020.11.03"]
[Round "10"]
[White "alexrustemov"]
[Black "rasmussvane"]
[Result "1-0"]
[WhiteElo "2700"]
[BlackElo "2908"]
[TimeControl "180+1"]
[EndTime "12:01:25 PST"]
[Termination "alexrustemov won by resignation"]

1. d4 {[%clk 0:03:00.9]} 1... d5 {[%clk 0:02:59.6]} 2. c4 {[%clk 0:02:59.7]}
2... e6 {[%clk 0:02:59.9]} 3. Nc3 {[%clk 0:02:59.3]} 3... a6 {[%clk 0:03:00.3]}
4. cxd5 {[%clk 0:02:59]} 4... exd5 {[%clk 0:03:01.2]} 5. Nf3 {[%clk 0:02:59.5]}
5... Nf6 {[%clk 0:03:00.7]} 6. Bg5 {[%clk 0:03:00.1]} 6... Be6 {[%clk
0:03:00.8]} 7. e3 {[%clk 0:03:00.6]} 7... Nbd7 {[%clk 0:03:01.2]} 8. Bd3 {[%clk
0:03:00.9]} 8... Bd6 {[%clk 0:03:01.6]} 9. Qc2 {[%clk 0:03:00.5]} 9... c6 {[%clk
0:03:02]} 10. O-O {[%clk 0:02:59.8]} 10... Qc7 {[%clk 0:03:02.3]} 11. Bh4 {[%clk
0:02:59.5]} 11... O-O {[%clk 0:02:59.5]} 12. Rac1 {[%clk 0:02:58.4]} 12... Rfe8
{[%clk 0:02:59.3]} 13. Bg3 {[%clk 0:02:54.2]} 13... Bxg3 {[%clk 0:02:58.8]} 14.
hxg3 {[%clk 0:02:54.9]} 14... Bg4 {[%clk 0:02:58.9]} 15. b4 {[%clk 0:02:43.7]}
15... Qd6 {[%clk 0:02:58.2]} 16. a3 {[%clk 0:02:42.1]} 16... Re7 {[%clk
0:02:54.9]} 17. Na4 {[%clk 0:02:41.8]} 17... Rae8 {[%clk 0:02:52.7]} 18. Nc5
{[%clk 0:02:41.6]} 18... Nb6 {[%clk 0:02:48.4]} 19. Ne5 {[%clk 0:02:40.6]} 19...
Bc8 {[%clk 0:02:42.7]} 20. a4 {[%clk 0:02:40.7]} 20... Ng4 {[%clk 0:02:42.5]}
21. Bxh7+ {[%clk 0:02:32.6]} 21... Kf8 {[%clk 0:02:41.4]} 22. Nxg4 {[%clk
0:02:29]} 22... Bxg4 {[%clk 0:02:42.3]} 23. Bf5 {[%clk 0:02:29.3]} 23... Bxf5
{[%clk 0:02:40.4]} 24. Qxf5 {[%clk 0:02:30.2]} 24... g6 {[%clk 0:02:41.3]} 25.
Qf4 {[%clk 0:02:27.1]} 25... Nc4 {[%clk 0:02:31.8]} 26. Qxd6 {[%clk 0:02:04.8]}
26... Nxd6 {[%clk 0:02:32.7]} 27. g4 {[%clk 0:02:03.9]} 27... Kg7 {[%clk
0:02:31.2]} 28. g3 {[%clk 0:02:04]} 28... Ra8 {[%clk 0:01:51.3]} 29. a5 {[%clk
0:02:00.9]} 29... Ne8 {[%clk 0:01:49.6]} 30. Kg2 {[%clk 0:02:00.5]} 30... Nf6
{[%clk 0:01:49.8]} 31. Kf3 {[%clk 0:01:59.7]} 31... Nh7 {[%clk 0:01:45.3]} 32.
Rh1 {[%clk 0:01:59.1]} 32... Rh8 {[%clk 0:01:43]} 33. Ke2 {[%clk 0:01:56.1]}
33... Nf6 {[%clk 0:01:39.4]} 34. Rxh8 {[%clk 0:01:54]} 34... Kxh8 {[%clk
0:01:40.3]} 35. Kf3 {[%clk 0:01:53.3]} 35... Ne8 {[%clk 0:01:35.6]} 36. g5
{[%clk 0:01:48]} 36... Nd6 {[%clk 0:01:34.9]} 37. Kf4 {[%clk 0:01:46.2]} 37...
Kg7 {[%clk 0:01:29.7]} 38. g4 {[%clk 0:01:45.1]} 38... Re8 {[%clk 0:01:25.4]}
39. Rh1 {[%clk 0:01:44.5]} 39... Re7 {[%clk 0:01:22.8]} 40. f3 {[%clk
0:01:44.4]} 40... Nb5 {[%clk 0:01:22.7]} 41. Rd1 {[%clk 0:01:40.8]} 41... Kg8
{[%clk 0:01:06.2]} 42. Rd3 {[%clk 0:01:39.7]} 42... Kg7 {[%clk 0:01:06.4]} 43.
e4 {[%clk 0:01:39.9]} 43... Kg8 {[%clk 0:01:06.5]} 44. e5 {[%clk 0:01:34.1]}
44... Nc7 {[%clk 0:00:53.5]} 45. Ke3 {[%clk 0:01:33.6]} 45... Ne6 {[%clk
0:00:53.1]} 46. f4 {[%clk 0:01:33.4]} 46... Kg7 {[%clk 0:00:53.5]} 47. Rd2
{[%clk 0:01:32.2]} 47... Re8 {[%clk 0:00:42.8]} 48. Rh2 {[%clk 0:01:31.7]} 48...
Re7 {[%clk 0:00:42.4]} 49. Nd3 {[%clk 0:01:30.5]} 49... Re8 {[%clk 0:00:40.5]}
50. Ne1 {[%clk 0:01:30.7]} 50... Kg8 {[%clk 0:00:32.4]} 51. Nf3 {[%clk
0:01:30.5]} 51... Ng7 {[%clk 0:00:32.7]} 52. Rh6 {[%clk 0:01:23.4]} 52... Rb8
{[%clk 0:00:32.1]} 53. Kd3 {[%clk 0:01:22.2]} 53... b6 {[%clk 0:00:30.9]} 54.
axb6 {[%clk 0:01:15.8]} 54... Rxb6 {[%clk 0:00:31.8]} 55. Kc3 {[%clk 0:01:16.3]}
55... Rb5 {[%clk 0:00:32.1]} 56. f5 {[%clk 0:01:14.4]} 56... gxf5 {[%clk
0:00:30.9]} 57. gxf5 {[%clk 0:01:15.3]} 57... Nxf5 {[%clk 0:00:30.1]} 58. Rxc6
{[%clk 0:01:15.3]} 58... a5 {[%clk 0:00:29.3]} 59. bxa5 {[%clk 0:01:11.2]} 59...
Rxa5 {[%clk 0:00:30.2]} 60. Kb4 {[%clk 0:01:08.3]} 60... Ra1 {[%clk 0:00:29.3]}
61. Rf6 {[%clk 0:01:07.8]} 61... Ne3 {[%clk 0:00:19.4]} 62. g6 {[%clk
0:01:02.3]} 62... fxg6 {[%clk 0:00:18.9]} 63. Rxg6+ {[%clk 0:01:02.6]} 63... Kf7
{[%clk 0:00:19.4]} 64. Rd6 {[%clk 0:00:56.4]} 64... Rc1 {[%clk 0:00:16]} 65. Kb5
{[%clk 0:00:55.6]} 65... Rc4 {[%clk 0:00:13.3]} 66. Kb6 {[%clk 0:00:45.1]} 66...
Ke8 {[%clk 0:00:11]} 67. Rc6 {[%clk 0:00:41.9]} 67... Rxc6+ {[%clk 0:00:05]} 68.
Kxc6 {[%clk 0:00:42.8]} 68... Ke7 {[%clk 0:00:05.6]} 69. Kc5 {[%clk 0:00:35.8]}
69... Ke6 {[%clk 0:00:03.5]} 70. Ng1 {[%clk 0:00:36.4]} 70... Kf5 {[%clk
0:00:03.3]} 71. Ne2 {[%clk 0:00:36.5]} 71... Ke6 {[%clk 0:00:02.1]} 72. Nf4+
{[%clk 0:00:36.2]} 72... Kd7 {[%clk 0:00:02.3]} 73. Nxd5 {[%clk 0:00:36.8]}
73... Nf5 {[%clk 0:00:02.9]} 74. Nf4 {[%clk 0:00:36.3]} 74... Ng3 {[%clk
0:00:02.8]} 75. d5 {[%clk 0:00:36]} 75... Ne4+ {[%clk 0:00:03.3]} 76. Kd4 {[%clk
0:00:36.7]} 76... Ng5 {[%clk 0:00:04.2]} 77. Nd3 {[%clk 0:00:32.9]} 77... Nf3+
{[%clk 0:00:04.4]} 78. Ke4 {[%clk 0:00:32.8]} 78... Ng5+ {[%clk 0:00:05.3]} 79.
Kf5 {[%clk 0:00:33.3]} 79... Nf3 {[%clk 0:00:05.3]} 80. Nc5+ {[%clk 0:00:33.7]}
80... Kc7 {[%clk 0:00:05.9]} 81. d6+ {[%clk 0:00:34]} 81... Kc6 {[%clk
0:00:06.3]} 82. d7 {[%clk 0:00:26.2]} 82... Kc7 {[%clk 0:00:06.5]} 83. e6 {[%clk
0:00:25.9]} 83... Kd8 {[%clk 0:00:04.9]} 84. Kf6 {[%clk 0:00:26.1]} 84... Ne5
{[%clk 0:00:02.2]} 1-0

[Event "*** Titled Tuesday Blitz"]
[Site "Chess.com"]
[Date "2020.11.03"]
[Round "10"]
[White "bazar-wokzal"]
[Black "Ural_bogatyr"]
[Result "1-0"]
[WhiteElo "2505"]
[BlackElo "2380"]
[TimeControl "180+1"]
[EndTime "12:01:30 PST"]
[Termination "bazar-wokzal won by resignation"]

1. e4 {[%clk 0:03:00.9]} 1... e5 {[%clk 0:03:00.1]} 2. Bc4 {[%clk 0:03:00.5]}
2... Nf6 {[%clk 0:03:00]} 3. d3 {[%clk 0:03:00.5]} 3... Nc6 {[%clk 0:03:00.4]}
4. Nf3 {[%clk 0:03:00.5]} 4... h6 {[%clk 0:02:59.6]} 5. O-O {[%clk 0:02:57.9]}
5... d6 {[%clk 0:03:00.1]} 6. h3 {[%clk 0:02:54]} 6... g5 {[%clk 0:03:00.4]} 7.
Nh2 {[%clk 0:02:40.8]} 7... Bg7 {[%clk 0:02:59.5]} 8. Nc3 {[%clk 0:02:39.2]}
8... Be6 {[%clk 0:02:58.3]} 9. Nd5 {[%clk 0:02:37.3]} 9... Ne7 {[%clk
0:02:56.5]} 10. Nxf6+ {[%clk 0:02:31.2]} 10... Bxf6 {[%clk 0:02:56.4]} 11. Bxe6
{[%clk 0:02:31.5]} 11... fxe6 {[%clk 0:02:57.3]} 12. Qh5+ {[%clk 0:02:31.3]}
12... Kd7 {[%clk 0:02:57.8]} 13. Be3 {[%clk 0:02:20.1]} 13... Qe8 {[%clk
0:02:57.5]} 14. Qe2 {[%clk 0:01:57.9]} 14... Ng6 {[%clk 0:02:55.4]} 15. c3
{[%clk 0:01:50.5]} 15... Nf4 {[%clk 0:02:53.9]} 16. Bxf4 {[%clk 0:01:46.3]}
16... gxf4 {[%clk 0:02:52.1]} 17. Nf3 {[%clk 0:01:38]} 17... Qg6 {[%clk
0:02:43.4]} 18. Ne1 {[%clk 0:01:35]} 18... Rhg8 {[%clk 0:02:37.6]} 19. Qf3
{[%clk 0:01:33.9]} 19... Ke7 {[%clk 0:02:30.8]} 20. Rd1 {[%clk 0:01:32.3]} 20...
Kf7 {[%clk 0:02:30.7]} 21. d4 {[%clk 0:01:31.9]} 21... Kg7 {[%clk 0:02:29.3]}
22. d5 {[%clk 0:01:25.1]} 22... exd5 {[%clk 0:02:27.2]} 23. Rxd5 {[%clk
0:01:24.6]} 23... Kh7 {[%clk 0:02:27]} 24. c4 {[%clk 0:01:23.8]} 24... b6 {[%clk
0:02:26.8]} 25. b4 {[%clk 0:01:22.4]} 25... a5 {[%clk 0:02:23.4]} 26. c5 {[%clk
0:01:19.9]} 26... axb4 {[%clk 0:02:19.6]} 27. cxb6 {[%clk 0:01:17.6]} 27... cxb6
{[%clk 0:02:18.9]} 28. Rxd6 {[%clk 0:01:17.2]} 28... Rxa2 {[%clk 0:02:18.2]} 29.
Rxb6 {[%clk 0:01:16.9]} 29... Ra3 {[%clk 0:02:14.4]} 30. Qg4 {[%clk 0:01:05.5]}
30... Qxg4 {[%clk 0:02:08.2]} 31. hxg4 {[%clk 0:01:05.3]} 31... Be7 {[%clk
0:02:06.4]} 32. Nf3 {[%clk 0:01:04.4]} 32... Rxg4 {[%clk 0:02:01.6]} 33. Nxe5
{[%clk 0:01:04.2]} 33... Rg5 {[%clk 0:02:02.2]} 34. Nc4 {[%clk 0:00:56.2]} 34...
Rc3 {[%clk 0:02:02.1]} 35. Rb7 {[%clk 0:00:55.7]} 35... Rg7 {[%clk 0:01:57.5]}
36. Nd2 {[%clk 0:00:40.8]} 36... Rd3 {[%clk 0:01:52.2]} 37. Nc4 {[%clk
0:00:28.3]} 37... Rd4 {[%clk 0:01:45.7]} 38. Nb6 {[%clk 0:00:16.4]} 38... Rxe4
{[%clk 0:01:43.8]} 39. Nd5 {[%clk 0:00:09.3]} 39... Bc5 {[%clk 0:01:43.6]} 40.
Rxg7+ {[%clk 0:00:08.6]} 40... Kxg7 {[%clk 0:01:44.5]} 41. Rc1 {[%clk
0:00:08.6]} 41... Bf8 {[%clk 0:01:10.6]} 42. Rc7+ {[%clk 0:00:08.2]} 42... Kg6
{[%clk 0:01:08.7]} 43. f3 {[%clk 0:00:08.7]} 43... Rd4 {[%clk 0:01:06.8]} 44.
Rc6+ {[%clk 0:00:08.6]} 44... Kg5 {[%clk 0:01:06.4]} 45. Nc7 {[%clk 0:00:08.3]}
45... Kf5 {[%clk 0:00:58.3]} 46. Ne6 {[%clk 0:00:06.6]} 46... Rd1+ {[%clk
0:00:57.7]} 47. Kh2 {[%clk 0:00:07]} 47... Be7 {[%clk 0:00:57.9]} 48. Ng7+
{[%clk 0:00:06.6]} 48... Kg5 {[%clk 0:00:54.4]} 49. Ne6+ {[%clk 0:00:06.9]}
49... Kf6 {[%clk 0:00:47]} 50. Nxf4+ {[%clk 0:00:06.8]} 50... Bd6 {[%clk
0:00:47.5]} 51. g3 {[%clk 0:00:05.8]} 51... Kf5 {[%clk 0:00:39.9]} 52. Rb6
{[%clk 0:00:05.4]} 52... Bxf4 {[%clk 0:00:25.5]} 53. gxf4 {[%clk 0:00:04.8]}
53... Rd4 {[%clk 0:00:23.9]} 54. Kg3 {[%clk 0:00:03.8]} 54... h5 {[%clk
0:00:21.6]} 55. Rb5+ {[%clk 0:00:03.8]} 55... Kf6 {[%clk 0:00:22]} 56. Rb6+
{[%clk 0:00:04.1]} 56... Kf7 {[%clk 0:00:21.4]} 57. Rb5 {[%clk 0:00:04]} 57...
Ke6 {[%clk 0:00:19]} 58. Rxh5 {[%clk 0:00:03.5]} 58... Rd5 {[%clk 0:00:17.8]}
59. Rh6+ {[%clk 0:00:02.2]} 59... Kf5 {[%clk 0:00:16.3]} 60. Rb6 {[%clk
0:00:01.9]} 60... Rd4 {[%clk 0:00:15.9]} 61. Rb5+ {[%clk 0:00:02.3]} 61... Ke6
{[%clk 0:00:15.9]} 62. Kg4 {[%clk 0:00:02.8]} 62... Kf6 {[%clk 0:00:15.9]} 63.
Rb6+ {[%clk 0:00:02.8]} 63... Kf7 {[%clk 0:00:15.9]} 64. Kg5 {[%clk 0:00:03.3]}
64... Rc4 {[%clk 0:00:14.9]} 65. f5 {[%clk 0:00:03.6]} 65... Rc3 {[%clk
0:00:12.5]} 66. Rb7+ {[%clk 0:00:04]} 66... Kf8 {[%clk 0:00:12.4]} 67. Rxb4
{[%clk 0:00:04.9]} 67... Rxf3 {[%clk 0:00:12.1]} 68. Kg6 {[%clk 0:00:04.4]}
68... Rc3 {[%clk 0:00:03.8]} 69. Rb8+ {[%clk 0:00:03.7]} 69... Ke7 {[%clk
0:00:04]} 70. f6+ {[%clk 0:00:04.1]} 70... Ke6 {[%clk 0:00:04.5]} 71. Re8+
{[%clk 0:00:03.4]} 71... Kd7 {[%clk 0:00:04.1]} 72. f7 {[%clk 0:00:03.9]} 72...
Rg3+ {[%clk 0:00:04.6]} 73. Kh5 {[%clk 0:00:04.3]} 1-0

[Event "*** Titled Tuesday Blitz"]
[Site "Chess.com"]
[Date "2020.11.03"]
[Round "10"]
[White "Ajedrez_con_German"]
[Black "CaspiIsrael"]
[Result "1/2-1/2"]
[WhiteElo "2478"]
[BlackElo "2603"]
[TimeControl "180+1"]
[EndTime "12:01:31 PST"]
[Termination "Game drawn - insufficient material"]

1. Nf3 {[%clk 0:03:00.9]} 1... f5 {[%clk 0:02:58.7]} 2. d4 {[%clk 0:02:56.8]}
2... Nf6 {[%clk 0:02:58.1]} 3. c4 {[%clk 0:02:43.5]} 3... g6 {[%clk 0:02:57.2]}
4. g3 {[%clk 0:02:43.7]} 4... Bg7 {[%clk 0:02:57.7]} 5. Bg2 {[%clk 0:02:43.7]}
5... O-O {[%clk 0:02:58]} 6. O-O {[%clk 0:02:43.4]} 6... d6 {[%clk 0:02:58.4]}
7. Nc3 {[%clk 0:02:42.8]} 7... c6 {[%clk 0:02:58.8]} 8. d5 {[%clk 0:02:41.2]}
8... e5 {[%clk 0:02:58]} 9. dxe6 {[%clk 0:02:39.2]} 9... Bxe6 {[%clk 0:02:58.5]}
10. Qa4 {[%clk 0:02:31.9]} 10... Na6 {[%clk 0:02:56.5]} 11. Ng5 {[%clk
0:02:10.8]} 11... Bd7 {[%clk 0:02:21.5]} 12. Rd1 {[%clk 0:02:03.6]} 12... Nc5
{[%clk 0:02:19.5]} 13. Qc2 {[%clk 0:02:02.6]} 13... h6 {[%clk 0:02:17.1]} 14.
Nf3 {[%clk 0:02:00.2]} 14... Be6 {[%clk 0:02:17]} 15. b3 {[%clk 0:01:59]} 15...
Nfe4 {[%clk 0:02:13.7]} 16. Bb2 {[%clk 0:01:58.3]} 16... Nxc3 {[%clk 0:02:08.6]}
17. Bxc3 {[%clk 0:01:57.6]} 17... Bxc3 {[%clk 0:02:09.5]} 18. Qxc3 {[%clk
0:01:56.5]} 18... Ne4 {[%clk 0:02:10.4]} 19. Qe3 {[%clk 0:01:45.2]} 19... Qb6
{[%clk 0:02:07.6]} 20. Nd4 {[%clk 0:01:39.3]} 20... Bf7 {[%clk 0:01:59.4]} 21.
Qxh6 {[%clk 0:01:25.4]} 21... Rae8 {[%clk 0:01:56.4]} 22. e3 {[%clk 0:01:16]}
22... Qc5 {[%clk 0:01:48]} 23. h4 {[%clk 0:00:54.3]} 23... Nf6 {[%clk 0:01:45]}
24. Nf3 {[%clk 0:00:42.2]} 24... Ng4 {[%clk 0:01:31.5]} 25. Qf4 {[%clk
0:00:40.2]} 25... Re6 {[%clk 0:01:26.6]} 26. Ng5 {[%clk 0:00:37.7]} 26... Rf6
{[%clk 0:01:26.5]} 27. Qd4 {[%clk 0:00:33.2]} 27... Qxd4 {[%clk 0:01:21]} 28.
Rxd4 {[%clk 0:00:34.1]} 28... Rd8 {[%clk 0:01:16.7]} 29. Rad1 {[%clk 0:00:34]}
29... Ne5 {[%clk 0:01:10]} 30. Nf3 {[%clk 0:00:32.9]} 30... Ng4 {[%clk
0:01:05.7]} 31. Bh3 {[%clk 0:00:30.9]} 31... Nh6 {[%clk 0:01:03.9]} 32. Ng5
{[%clk 0:00:31]} 32... Kg7 {[%clk 0:01:01]} 33. Bg2 {[%clk 0:00:30.9]} 33... Bg8
{[%clk 0:00:59.4]} 34. Bf3 {[%clk 0:00:31.1]} 34... Kf8 {[%clk 0:00:59.1]} 35.
Kg2 {[%clk 0:00:29.6]} 35... Ke7 {[%clk 0:00:59.5]} 36. R4d2 {[%clk 0:00:29.6]}
36... a6 {[%clk 0:00:54.2]} 37. Rc1 {[%clk 0:00:29.8]} 37... Be6 {[%clk
0:00:51.5]} 38. Rcd1 {[%clk 0:00:28.7]} 38... Bg8 {[%clk 0:00:50.9]} 39. Nh3
{[%clk 0:00:28.8]} 39... Nf7 {[%clk 0:00:50]} 40. Nf4 {[%clk 0:00:26.8]} 40...
Ne5 {[%clk 0:00:50.2]} 41. Nd3 {[%clk 0:00:25.4]} 41... Nd7 {[%clk 0:00:48.1]}
42. Nf4 {[%clk 0:00:25.3]} 42... Nc5 {[%clk 0:00:46.6]} 43. Ne2 {[%clk
0:00:25.6]} 43... Bf7 {[%clk 0:00:46]} 44. Nf4 {[%clk 0:00:25.9]} 44... a5
{[%clk 0:00:45.9]} 45. Nd3 {[%clk 0:00:26.2]} 45... Na6 {[%clk 0:00:45.3]} 46.
Nf4 {[%clk 0:00:26.1]} 46... a4 {[%clk 0:00:44]} 47. Nh3 {[%clk 0:00:25.8]}
47... axb3 {[%clk 0:00:40.4]} 48. axb3 {[%clk 0:00:26.7]} 48... Nc5 {[%clk
0:00:40.9]} 49. Rb1 {[%clk 0:00:25.9]} 49... Ra8 {[%clk 0:00:40.5]} 50. Ng5
{[%clk 0:00:25.9]} 50... Bg8 {[%clk 0:00:40]} 51. b4 {[%clk 0:00:24.7]} 51...
Nd7 {[%clk 0:00:39.2]} 52. b5 {[%clk 0:00:25]} 52... Ne5 {[%clk 0:00:36]} 53.
bxc6 {[%clk 0:00:25.5]} 53... bxc6 {[%clk 0:00:36.2]} 54. Rb7+ {[%clk
0:00:24.7]} 54... Kf8 {[%clk 0:00:35.4]} 55. Nh7+ {[%clk 0:00:21.9]} 55... Bxh7
{[%clk 0:00:34.8]} 56. Rxh7 {[%clk 0:00:22.8]} 56... Rd8 {[%clk 0:00:28.9]} 57.
Rh8+ {[%clk 0:00:20.6]} 57... Ke7 {[%clk 0:00:28.6]} 58. Rxd8 {[%clk 0:00:21.5]}
58... Kxd8 {[%clk 0:00:28.9]} 59. Be2 {[%clk 0:00:22.4]} 59... Kc7 {[%clk
0:00:28.4]} 60. Ra2 {[%clk 0:00:22.4]} 60... Kb7 {[%clk 0:00:26.7]} 61. f4
{[%clk 0:00:20.5]} 61... Nd7 {[%clk 0:00:26]} 62. g4 {[%clk 0:00:19]} 62... fxg4
{[%clk 0:00:24.6]} 63. Bxg4 {[%clk 0:00:19.9]} 63... Nc5 {[%clk 0:00:25]} 64.
Kg3 {[%clk 0:00:18.4]} 64... Rf8 {[%clk 0:00:23.8]} 65. Bf3 {[%clk 0:00:18.5]}
65... Kb6 {[%clk 0:00:23.4]} 66. Rb2+ {[%clk 0:00:18.1]} 66... Kc7 {[%clk
0:00:22.3]} 67. e4 {[%clk 0:00:17.8]} 67... Re8 {[%clk 0:00:21]} 68. Re2 {[%clk
0:00:17.3]} 68... Kd7 {[%clk 0:00:19.9]} 69. e5 {[%clk 0:00:17.2]} 69... dxe5
{[%clk 0:00:18.4]} 70. Rxe5 {[%clk 0:00:17.3]} 70... Rxe5 {[%clk 0:00:17.2]} 71.
fxe5 {[%clk 0:00:18.2]} 71... Ke6 {[%clk 0:00:17.7]} 72. Bxc6 {[%clk 0:00:17.3]}
72... Kxe5 {[%clk 0:00:17.9]} 73. Kg4 {[%clk 0:00:16.5]} 73... Kf6 {[%clk
0:00:17.5]} 74. Bd5 {[%clk 0:00:16.5]} 74... Nd3 {[%clk 0:00:17.3]} 75. Kg3
{[%clk 0:00:13.4]} 75... Kg7 {[%clk 0:00:15.7]} 76. Kg4 {[%clk 0:00:13.4]} 76...
Kh6 {[%clk 0:00:15.6]} 77. Be4 {[%clk 0:00:13]} 77... Ne5+ {[%clk 0:00:15.2]}
78. Kg3 {[%clk 0:00:10]} 78... Nxc4 {[%clk 0:00:16.1]} 79. Bxg6 {[%clk
0:00:10.2]} 79... Kxg6 {[%clk 0:00:16.8]} 80. h5+ {[%clk 0:00:09.1]} 80... Kh6
{[%clk 0:00:16.9]} 81. Kf4 {[%clk 0:00:08.8]} 81... Nd6 {[%clk 0:00:17.4]} 82.
Ke5 {[%clk 0:00:09.1]} 82... Ne8 {[%clk 0:00:18.3]} 83. Kf4 {[%clk 0:00:10]}
83... Ng7 {[%clk 0:00:19]} 84. Ke5 {[%clk 0:00:10.9]} 84... Kg5 {[%clk
0:00:19.3]} 85. Ke4 {[%clk 0:00:11]} 85... Ne6 {[%clk 0:00:18.7]} 86. Ke5 {[%clk
0:00:11.9]} 86... Nf8 {[%clk 0:00:18.1]} 87. h6 {[%clk 0:00:12.3]} 87... Nh7
{[%clk 0:00:18.4]} 88. Ke4 {[%clk 0:00:12.5]} 88... Kxh6 {[%clk 0:00:19.3]}
1/2-1/2

[Event "*** Titled Tuesday Blitz"]
[Site "Chess.com"]
[Date "2020.11.03"]
[Round "10"]
[White "vugarrasulov"]
[Black "lolo9292"]
[Result "1-0"]
[WhiteElo "2865"]
[BlackElo "2512"]
[TimeControl "180+1"]
[EndTime "12:01:43 PST"]
[Termination "vugarrasulov won on time"]

1. d4 {[%clk 0:03:00.9]} 1... Nf6 {[%clk 0:03:00.1]} 2. c4 {[%clk 0:03:00.5]}
2... g6 {[%clk 0:03:01]} 3. Nf3 {[%clk 0:03:00.6]} 3... Bg7 {[%clk 0:03:01.6]}
4. g3 {[%clk 0:03:01.2]} 4... d6 {[%clk 0:03:02.2]} 5. Bg2 {[%clk 0:03:01.8]}
5... O-O {[%clk 0:03:03.1]} 6. O-O {[%clk 0:03:02.3]} 6... Bf5 {[%clk
0:03:03.7]} 7. Re1 {[%clk 0:02:57.5]} 7... c6 {[%clk 0:02:58.6]} 8. Qb3 {[%clk
0:02:52.9]} 8... Qb6 {[%clk 0:02:57.9]} 9. Qa3 {[%clk 0:02:51.2]} 9... Qa6
{[%clk 0:02:57.1]} 10. b3 {[%clk 0:02:50.9]} 10... Qxa3 {[%clk 0:02:51.6]} 11.
Bxa3 {[%clk 0:02:51.4]} 11... a5 {[%clk 0:02:48.7]} 12. Nfd2 {[%clk 0:02:46.1]}
12... Na6 {[%clk 0:02:39.5]} 13. e4 {[%clk 0:02:43.8]} 13... Bg4 {[%clk
0:02:39.8]} 14. e5 {[%clk 0:02:33.1]} 14... dxe5 {[%clk 0:02:35.6]} 15. dxe5
{[%clk 0:02:34]} 15... Nd7 {[%clk 0:02:35.7]} 16. f4 {[%clk 0:02:16.9]} 16...
Nb4 {[%clk 0:02:34]} 17. Nc3 {[%clk 0:01:56.1]} 17... Nc2 {[%clk 0:02:33]} 18.
Bxe7 {[%clk 0:01:56.2]} 18... Nxe1 {[%clk 0:02:27.9]} 19. Bxf8 {[%clk 0:01:47]}
19... Bxf8 {[%clk 0:02:05.7]} 20. Rxe1 {[%clk 0:01:46.2]} 20... Bb4 {[%clk
0:02:04.9]} 21. Nde4 {[%clk 0:01:36.8]} 21... Nc5 {[%clk 0:02:02.1]} 22. Re3
{[%clk 0:01:29.2]} 22... Nxe4 {[%clk 0:01:58.4]} 23. Nxe4 {[%clk 0:01:30.1]}
23... Bf5 {[%clk 0:01:57.3]} 24. Kf2 {[%clk 0:01:04.3]} 24... a4 {[%clk
0:01:57.2]} 25. Kf3 {[%clk 0:01:03]} 25... h5 {[%clk 0:01:55.8]} 26. h3 {[%clk
0:01:02]} 26... axb3 {[%clk 0:01:55.7]} 27. Rxb3 {[%clk 0:00:59.3]} 27... c5
{[%clk 0:01:47.1]} 28. Nf6+ {[%clk 0:00:47.7]} 28... Kg7 {[%clk 0:01:45.6]} 29.
g4 {[%clk 0:00:48]} 29... Bc2 {[%clk 0:01:40.3]} 30. Rb2 {[%clk 0:00:36.1]}
30... Bd1+ {[%clk 0:01:38.3]} 31. Kf2 {[%clk 0:00:36.2]} 31... Bc3 {[%clk
0:01:35.6]} 32. Bxb7 {[%clk 0:00:20.9]} 32... Ra7 {[%clk 0:01:30.8]} 33. Rb6
{[%clk 0:00:17]} 33... Rxa2+ {[%clk 0:01:30.9]} 34. Ke3 {[%clk 0:00:13.7]} 34...
hxg4 {[%clk 0:01:22.9]} 35. hxg4 {[%clk 0:00:14.6]} 35... Bd2+ {[%clk
0:01:21.7]} 36. Ke4 {[%clk 0:00:12.3]} 36... Ra3 {[%clk 0:01:21.3]} 37. Kd5
{[%clk 0:00:07.8]} 37... Bf3+ {[%clk 0:01:18.5]} 38. Kd6 {[%clk 0:00:07.4]}
38... Rd3+ {[%clk 0:01:17.6]} 39. Bd5 {[%clk 0:00:06.6]} 39... Bxf4 {[%clk
0:01:16.6]} 40. Rb8 {[%clk 0:00:07]} 40... Kh6 {[%clk 0:01:07.4]} 41. Rf8 {[%clk
0:00:04.1]} 41... Re3 {[%clk 0:00:57]} 42. Nd7 {[%clk 0:00:03.5]} 42... Bxg4
{[%clk 0:00:54.1]} 43. Rxf7 {[%clk 0:00:03.2]} 43... Bxd7 {[%clk 0:00:53.9]} 44.
Rxd7 {[%clk 0:00:03.8]} 44... Rxe5 {[%clk 0:00:51]} 45. Kxc5 {[%clk 0:00:04.7]}
45... g5 {[%clk 0:00:50.1]} 46. Kd4 {[%clk 0:00:04.9]} 46... Re1 {[%clk
0:00:48.3]} 47. Be4 {[%clk 0:00:04.5]} 47... g4 {[%clk 0:00:46]} 48. Rh7+ {[%clk
0:00:04.4]} 48... Kg5 {[%clk 0:00:45.9]} 49. c5 {[%clk 0:00:04.5]} 49... Rd1+
{[%clk 0:00:44.4]} 50. Bd3 {[%clk 0:00:04.9]} 50... g3 {[%clk 0:00:42.8]} 51.
Rg7+ {[%clk 0:00:05.4]} 51... Kf6 {[%clk 0:00:35.5]} 52. Rg4 {[%clk 0:00:05.2]}
52... Be5+ {[%clk 0:00:35.2]} 53. Ke4 {[%clk 0:00:05.3]} 53... Re1+ {[%clk
0:00:35.4]} 54. Kd5 {[%clk 0:00:05.4]} 54... Re3 {[%clk 0:00:30.9]} 55. Bh7
{[%clk 0:00:02.9]} 55... Re2 {[%clk 0:00:28.4]} 56. Be4 {[%clk 0:00:02.6]} 56...
Rd2+ {[%clk 0:00:26]} 57. Kc6 {[%clk 0:00:03.2]} 57... Rd4 {[%clk 0:00:24.2]}
58. Rg6+ {[%clk 0:00:03.3]} 58... Kf7 {[%clk 0:00:23.6]} 59. Bc2 {[%clk
0:00:03.8]} 59... Rd2 {[%clk 0:00:20.6]} 60. Be4 {[%clk 0:00:03.5]} 60... Re2
{[%clk 0:00:20.4]} 61. Bf5 {[%clk 0:00:03.6]} 61... Rf2 {[%clk 0:00:17.2]} 62.
Be4 {[%clk 0:00:03.5]} 62... Rf4 {[%clk 0:00:17.1]} 63. Bc2 {[%clk 0:00:03.5]}
63... Rc4 {[%clk 0:00:15.8]} 64. Bd3 {[%clk 0:00:03.5]} 64... Rc3 {[%clk
0:00:15.1]} 65. Be4 {[%clk 0:00:03.7]} 65... Bf4 {[%clk 0:00:15.4]} 66. Rg4
{[%clk 0:00:03.4]} 66... Be5 {[%clk 0:00:11.6]} 67. Kd5 {[%clk 0:00:03.6]} 67...
Bf6 {[%clk 0:00:11.4]} 68. c6 {[%clk 0:00:04]} 68... Re3 {[%clk 0:00:10.2]} 69.
Bg6+ {[%clk 0:00:04.1]} 69... Kg7 {[%clk 0:00:09.1]} 70. Be4+ {[%clk 0:00:05]}
70... Kf8 {[%clk 0:00:08.6]} 71. Rg6 {[%clk 0:00:04.6]} 71... Kf7 {[%clk
0:00:07.7]} 72. Rg4 {[%clk 0:00:05.2]} 72... Rc3 {[%clk 0:00:07.6]} 73. Bg6+
{[%clk 0:00:05.1]} 73... Kg7 {[%clk 0:00:07.1]} 74. Bf5+ {[%clk 0:00:06]} 74...
Kf7 {[%clk 0:00:07.4]} 75. Be6+ {[%clk 0:00:06.3]} 75... Ke7 {[%clk 0:00:07.7]}
76. Bf5 {[%clk 0:00:06.1]} 76... Rc1 {[%clk 0:00:06.9]} 77. Re4+ {[%clk
0:00:06.1]} 77... Kd8 {[%clk 0:00:07.2]} 78. Rg4 {[%clk 0:00:05.5]} 78... Rd1+
{[%clk 0:00:07.3]} 79. Ke6 {[%clk 0:00:06]} 79... Bc3 {[%clk 0:00:04.7]} 80.
Rxg3 {[%clk 0:00:06.1]} 80... Re1+ {[%clk 0:00:05.3]} 81. Kd5 {[%clk 0:00:05.5]}
81... Re5+ {[%clk 0:00:05.9]} 82. Kd6 {[%clk 0:00:05.8]} 82... Re8 {[%clk
0:00:01.1]} 83. Rxc3 {[%clk 0:00:05.4]} 1-0